Cogmind - Beta 16 @@@ ROGUE MODE // 2025.11.27 @ 21:31:37 Player: OBLIQUE Result: Destroyed by H-88 Terminator with Heavy Machine Gun Performance ------------- Evolutions (9) 4500 Regions Visited (16) 3200 Robots Destroyed (20) 100 Value Destroyed (951) 951 Prototype IDs (30) 600 Alien Tech Used (2) 400 Bonus (2834) 2834 TOTAL SCORE: 12585 Bonus ------- Follower Combat Kills 746 Entered DSFs 1000 Registered with UFD 300 Met Optimus in HQ 500 Met Zhirov 300 Friendly Fire -12 Cogmind --------- Core Integrity 0/1600 Matter 154/300 Energy 99/100 System Corruption 3% Temperature Cool (0) Movement Core (50) Location -1/Access Parts ------- > --- POWER (1) -------- (None) > --- PROPULSION (5) --- Gyrokinetic Inverter > --- UTILITY (17) ----- 0b10 Decoder Chip [Scout] > --- WEAPON (2) ------- (None) > --- INVENTORY (5) ---- Quantum Reactor Q-thruster Stasis Canceller Enhanced Hardcell Cannon Peak State ------------ > --- POWER ------------ Light Particle Reactor > --- PROPULSION ------- Gyrokinetic Inverter Antigrav Array Antigrav Array > --- UTILITY ---------- Medium Storage Unit Advanced Energy Well Quantum Shading Machine Triangulator Advanced Visual Processing Unit Enhanced Optical Array Advanced Sensor Array Advanced Signal Interpreter 0b10 Decoder Chip [Scout] Advanced Transmission Jammer Improved Hacking Suite Improved Hacking Suite Advanced System Shield Authchip [R/Combat] > --- WEAPON ----------- Enhanced Hardcell Cannon Dual-blade Saw > --- INVENTORY -------- Impulse Thruster Advanced Surge Thruster Advanced Surge Thruster Advanced Sensor Array Advanced Signal Interpreter Advanced ECM Suite Layered Light Armor Plating Improved Hacking Suite Improved Hacking Suite Advanced System Shield [Rating: 140] Favorites ----------- Power Ion Engine Engine Ion Engine Power Core Micro Fission Core Reactor Light Particle Reactor Propulsion Carbon-fiber Leg Treads Light Treads Leg Carbon-fiber Leg Wheel Wheel Hover Unit Gyrokinetic Inverter Flight Unit Biomechanical Wings Utility Large Storage Unit Device Terrain Scanner Storage Large Storage Unit Processor 0b10 Decoder Chip [Scout] Hackware Improved Hacking Suite Protection Enhanced Scrap Shield Weapon Medium Laser Energy Gun Medium Laser Energy Cannon Proton Cannon Ballistic Gun Light Assault Rifle Ballistic Cannon Enhanced Hardcell Cannon Launcher Fusion Bomb Launcher Special Weapon Mining Laser Slashing Weapon Dual-blade Saw Build | -11 -10 -10 -10 -9 -6 -5 -5 -5 -5 -4 -4 -4 -3 -2 -2 -1 ------- Run | Yrd Mat Min Sub Scr Fac Fac Upp Upp Zhi Pro Fac DSF Res Res DSF Acc Slots Evolved 18 | . . . . . 8 2 . . . . 2 . 2 2 . 2 Power . | . . . . . . . . . . . . . . . . . Propulsion 3 | . . . . . 2 1 . . . . . . . . . . Utility 15 | . . . . . 6 1 . . . . 2 . 2 2 . 2 Weapon . | . . . . . . . . . . . . . . . . . Parts Attached 93 | 6 6 3 6 3 11 12 6 3 4 2 3 4 8 3 3 10 Power 7 | 1 . . 1 . . 1 1 . 1 . . . 1 . . 1 Engine 2 | 1 . . 1 . . . . . . . . . . . . . Core 2 | . . . . . . 1 1 . . . . . . . . . Reactor 3 | . . . . . . . . . 1 . . . 1 . . 1 Propulsion 22 | 2 2 . 2 . 4 2 1 . 1 1 . 2 2 . . 3 Treads 2 | . 2 . . . . . . . . . . . . . . . Leg 2 | . . . 2 . . . . . . . . . . . . . Wheel 4 | 2 . . . . . 1 . . . 1 . . . . . . Hover 6 | . . . . . . . . . . . . 2 2 . . 2 Flight 8 | . . . . . 4 1 1 . 1 . . . . . . 1 Utility 48 | 1 3 1 2 2 6 8 4 1 2 1 3 2 3 2 1 6 Device 19 | . 2 . 1 1 1 5 2 . . . 2 . 1 2 . 2 Storage 4 | 1 1 . . . . . . . 1 . . . 1 . . . Processor 6 | . . . . 1 3 1 . . . . 1 . . . . . Hackware 14 | . . . . . 2 2 1 1 . 1 . 2 1 . 1 3 Protection 5 | . . 1 1 . . . 1 . 1 . . . . . . 1 Artifact . | . . . . . . . . . . . . . . . . . Weapon 16 | 2 1 2 1 1 1 1 . 2 . . . . 2 1 2 . Energy Gun 4 | 2 1 1 . . . . . . . . . . . . . . Energy Cannon 1 | . . . . . 1 . . . . . . . . . . . Ballistic Gun 2 | . . . 1 . . . . 1 . . . . . . . . Ballistic Cannon 5 | . . . . 1 . 1 . . . . . . 1 1 1 . Launcher 1 | . . . . . . . . . . . . . 1 . . . Special Weapon 1 | . . 1 . . . . . . . . . . . . . . Impact Weapon . | . . . . . . . . . . . . . . . . . Slashing Weapon 2 | . . . . . . . . 1 . . . . . . 1 . Piercing Weapon . | . . . . . . . . . . . . . . . . . Special Melee Weapon . | . . . . . . . . . . . . . . . . . Unidentified Prototypes 10 | . . . 1 . 1 . 1 . 5 . . . 2 . . . Parts Lost 48 | . 2 . . 1 1 12 . . . 3 . 2 4 . 3 20 Power 4 | . . . . . . 2 . . . 1 . . . . . 1 Propulsion 8 | . 1 . . . . 2 . . . . . . 1 . 1 3 Utility 31 | . 1 . . 1 1 7 . . . 2 . 2 2 . 1 14 Weapon 5 | . . . . . . 1 . . . . . . 1 . 1 2 Highest Loss Streak 9 | . 2 . . 1 1 8 . . . 2 . 2 2 . 3 9 To Critical Strikes . | . . . . . . . . . . . . . . . . . Average Backups 10 | 2 7 14 5 11 10 12 4 4 4 3 2 4 4 7 9 9 Power . | . 1 1 . . . . . . . . . . . . . . Propulsion 1 | 1 2 5 . . 1 . . 1 . 1 1 2 1 2 2 4 Utility 6 | . 2 5 3 8 5 7 3 2 3 1 . . 2 4 5 3 Weapon 1 | . 1 3 1 2 1 2 1 1 . . . . . . . . Tool/Special . | . . . . . . . . . . . . . . . . . Unused Backups 43 | . . 1 9 6 . 7 3 . 5 . . 3 . . . 9 Power 1 | . . . . . . . . . . . . . . . . 1 Propulsion 14 | . . 1 5 . . . . . 2 . . 2 . . . 4 Utility 20 | . . . 3 3 . 6 1 . 3 . . 1 . . . 3 Weapon 7 | . . . 1 2 . 1 2 . . . . . . . . 1 Tool/Special 1 | . . . . 1 . . . . . . . . . . . . Average Slot Usage (%) 88 | . 94 100 85 95 72 72 68 85 84 87 82 81 83 88 85 74 Engine 8 | . 14 14 14 14 2 . . . . . . . . . . . Treads 3 | . 15 28 20 . . . . . . . . . . . . . Leg 13 | . . . 7 28 2 . . . . . . . . . . . Hover 1 | . . . . . . . . . . . . 1 10 17 15 11 Flight 5 | . . . . . 20 23 24 29 29 23 15 15 11 . . . Device 9 | . 10 13 . 9 8 5 10 7 2 3 8 11 7 15 17 8 Storage 10 | . 14 14 . 13 6 4 . . . 3 5 5 4 8 8 7 Processor 7 | . . . . . 17 21 23 23 23 17 21 21 19 17 17 15 Hackware 5 | . . . . . 9 12 1 8 11 15 15 15 22 17 16 20 Protection 1 | . . . 13 . . . 4 5 5 4 5 . . . . 2 Energy Gun 10 | . 28 23 14 14 1 . . . . . . . . . . . Ballistic Gun 7 | . . . 10 13 . . . . 5 5 5 5 . . . . Peak Build Rating 140 | 6 8 9 16 22 64 70 78 82 88 94 98 96 116 133 133 140 Average Rating 41 | 3 6 8 11 15 56 61 71 77 81 88 95 91 98 127 126 126 On Entrance 61 | . 6 8 9 14 21 49 47 75 82 80 88 96 93 111 133 130 Avg Prop Armor Cover (%) 5 | . . . . . . 6 . . . 12 12 12 2 . . 3 Naked Turns . | . . . . . . . . . . . . . . . . . Heaviest Build 54 | 12 28 31 26 36 40 27 28 26 26 25 12 12 40 54 54 54 Greatest Support 82 | 26 40 40 40 30 30 33 28 28 28 28 18 22 82 82 62 68 Greatest Overweight (x) 2 | . 2 . . 1 1 1 . . . . . . 1 . . 1 Average Overweight (x) . | . . . . . . . . . . . . . . . . . Largest Inventory Capacity 15 | 8 15 15 15 15 15 15 5 5 5 5 5 5 10 10 10 10 Average Capacity 12 | 7 13 15 5 14 15 14 5 5 5 5 5 5 5 10 10 9 Most Carried 15 | 5 14 15 15 15 15 15 5 5 5 5 5 5 6 9 10 10 Average Carried 11 | 2 7 14 5 14 12 14 4 4 4 4 3 4 4 7 9 9 Final Capacity 15 | 8 15 15 5 15 15 5 5 5 5 5 5 5 10 10 10 5 Final Carried 15 | 4 14 15 5 15 14 4 5 5 5 4 4 5 5 9 10 4 Scrap Suit Usage (%) 1 | . . . . . 34 . . . . . . . . . . . Class Distribution -------------------- 66% | Mutant 9% | Hacker-Mutant 7% | Hacker-Scout 5% | Hacker-Sprinter 4% | Wizard-Scout 4% | Sprinter Dominant Class ---------------- Mutant | -10/Materials Mutant | -10/Mines Mutant | -10/Subcaves Mutant | -9/Scraptown Hacker-Scout | -6/Factory Hacker-Mutant | -5/Factory Sprinter | -5/Upper Caves Hacker-Sprinter | -5/Upper Caves Hacker-Sprinter | -5/Zhirov Hacker-Sprinter | -4/Proximity Caves Hacker-Sprinter | -4/Factory Hacker-Sprinter | -4/DSF Hacker-Mutant | -3/Research Hacker-Scout | -2/Research Hacker-Scout | -2/DSF Wizard-Scout | -1/Access Resources | -11 -10 -10 -10 -9 -6 -5 -5 -5 -5 -4 -4 -4 -3 -2 -2 -1 ----------- Run | Yrd Mat Min Sub Scr Fac Fac Upp Upp Zhi Pro Fac DSF Res Res DSF Acc Matter Collected 2711 | 201 88 161 124 206 . 323 935 95 . 195 . 3 . . 73 307 Remotely 213 | . 52 161 . . . . . . . . . . . . . . Salvage Created 842 | . 88 48 86 50 . 144 . 30 . 193 . . 29 . 61 113 Parts 38 | . 1 . 5 3 . 8 . 1 . 4 . . 3 . 8 5 Haulers Intercepted . | . . . . . . . . . . . . . . . . . Recyclers Shooed . | . . . . . . . . . . . . . . . . . Parts Field Recycled . | . . . . . . . . . . . . . . . . . Retrieved Matter . | . . . . . . . . . . . . . . . . . Parts Self-Destructed 68 | . . . . . . . 16 46 . 6 . . . . . . Prevented 2 | . . . . . . . 1 . . 1 . . . . . . Parts Restored . | . . . . . . . . . . . . . . . . . Kills | -11 -10 -10 -10 -9 -6 -5 -5 -5 -5 -4 -4 -4 -3 -2 -2 -1 ------- Run | Yrd Mat Min Sub Scr Fac Fac Upp Upp Zhi Pro Fac DSF Res Res DSF Acc Combat Hostiles Destroyed 19 | . 2 1 3 1 . 4 . 1 . 3 . . 1 . 2 1 Guns 10 | . 2 . 3 1 . . . 1 . 3 . . . . . . Cannons 7 | . . . . . . 4 . . . . . . 1 . 2 . Classes Destroyed 9 | . 1 . 2 1 . 2 . . . 1 . . . . 1 1 Tunneler 1 | . . . . . . . . . . . . . . . . 1 Swarmer 5 | . . . 2 . . . . 1 . 1 . . 1 . . . Cutter 2 | . . . . . . . . . . . . . . . 2 . Grunt 5 | . 2 1 . . . 1 . . . 1 . . . . . . Sentry 1 | . . . . . . . . . . 1 . . . . . . Hunter 2 | . . . . . . 1 . . . . . . . . . 1 Programmer 2 | . . . . . . 2 . . . . . . . . . . Subdweller 1 | . . . 1 . . . . . . . . . . . . . Explorer 1 | . . . . 1 . . . . . . . . . . . . Best Kill Streak 4 | . 1 1 2 1 . 4 . 1 . 3 . . 1 . 2 1 Combat Bots Only 4 | . 1 1 2 1 . 4 . 1 . 3 . . 1 . 2 1 Max Kills in Single Turn 1 | . 1 1 1 1 . 1 . 1 . 1 . . 1 . 1 1 Gunslinging . | . . . . . . . . . . . . . . . . . Exploded . | . . . . . . . . . . . . . . . . . Melee . | . . . . . . . . . . . . . . . . . Uniques/NPCs Destroyed . | . . . . . . . . . . . . . . . . . Combat | -11 -10 -10 -10 -9 -6 -5 -5 -5 -5 -4 -4 -4 -3 -2 -2 -1 -------- Run | Yrd Mat Min Sub Scr Fac Fac Upp Upp Zhi Pro Fac DSF Res Res DSF Acc Hostile Shots Fired 564 | . 22 18 8 16 8 113 . 18 . 45 . 14 55 . 10 237 Missed 218 | . 7 4 4 3 5 45 . 7 . 17 . 6 21 . . 99 Hits 346 | . 15 14 4 13 3 68 . 11 . 28 . 8 34 . 10 138 Melee 24 | . . . . 7 . . . . . . . . . . 4 13 Projectile 322 | . 15 14 4 6 3 68 . 11 . 28 . 8 34 . 6 125 AOE 6 | . . . 1 . . 3 . . . . . . . . . 2 Critical Strikes 25 | . . 1 . . . 5 . . . 1 . 1 2 . 2 13 Actively Blocked 1 | . . . . . . . . . . 1 . . . . . . Part Disruptions 1 | . . . . . . . . . . . . 1 . . . . Damage Taken 8261 | . 227 208 86 133 47 1613 . 368 . 484 . 328 792 . 591 3384 Core 3184 | . 57 33 . 41 31 724 . 34 . 73 . 137 277 . 175 1602 Absorbed by Shields . | . . . . . . . . . . . . . . . . . Redirected to Shielding 33 | . . . . . . . . . . 33 . . . . . . Regen/Repaired (Parts) 82 | . . . . . . 20 . . . . . . . 62 . . Core Remaining (%) 72 | 100 . . . 47 96 . . . . 16 . 88 72 . 87 . Volleys Fired 177 | . 15 65 14 4 1 17 . 7 . 17 . . 9 2 6 20 Largest 2 | . 2 2 2 2 1 1 . 1 . 1 . . 1 1 1 1 Hottest 100 | . 80 100 100 70 44 47 . 35 . 35 . . 55 51 51 58 Shots Fired 205 | . 23 74 20 8 1 17 . 7 . 17 . . 9 2 6 21 Gun 85 | . 23 18 12 8 . . . 7 . 17 . . . . . . Cannon 56 | . . . . . 1 17 . . . . . . 9 2 6 21 Launcher . | . . . . . . . . . . . . . . . . . Special 64 | . . 56 8 . . . . . . . . . . . . . Kinetic 90 | . . . 6 4 1 17 . 7 . 17 . . 9 2 6 21 Thermal 115 | . 23 74 14 4 . . . . . . . . . . . . Explosive . | . . . . . . . . . . . . . . . . . Electromagnetic . | . . . . . . . . . . . . . . . . . Robot Hit Streak 10 | . 4 6 7 6 . 10 . 4 . 8 . . 3 . 2 3 Robot Miss Streak 4 | . 2 2 2 1 . 1 . 1 . 3 . . 4 . 2 1 Penetration Max . | . . . . . . . . . . . . . . . . . Secondary Targets 2 | . 1 . 1 . . . . . . . . . . . . . Max Gunslinging Chain 1 | . 1 . 1 . . . . . . . . . . . . . Shots Hit Robots 90 | . 16 12 6 6 . 14 . 9 . 11 . . 5 . 3 8 Core Hits 36 | . 5 3 3 3 . 9 . 3 . 4 . . 2 . 3 1 Critical Kills . | . . . . . . . . . . . . . . . . . Critical Parts Destroyed 1 | . . . . . . . . . . 1 . . . . . . Critical Strikes 12 | . . 2 1 . . 5 . . . 1 . . . . . 3 Burn 3 | . . 2 1 . . . . . . . . . . . . . Destroy 1 | . . . . . . . . . . 1 . . . . . . Blast 6 | . . . . . . 5 . . . . . . . . . 1 Sever 2 | . . . . . . . . . . . . . . . . 2 Melee Attacks 12 | . . . . . . . . 7 . . . . . . . 5 Impact . | . . . . . . . . . . . . . . . . . Slashing 12 | . . . . . . . . 7 . . . . . . . 5 Piercing . | . . . . . . . . . . . . . . . . . Sneak Attacks . | . . . . . . . . . . . . . . . . . Combat Hostiles . | . . . . . . . . . . . . . . . . . Follow-up Attacks . | . . . . . . . . . . . . . . . . . Damage Inflicted 2217 | . 196 145 113 51 . 545 . 262 . 317 . . 252 . 104 232 Guns 946 | . 196 145 89 49 . . . 150 . 317 . . . . . . Cannons 1042 | . . . . . . 545 . . . . . . 252 . 104 141 Explosions . | . . . . . . . . . . . . . . . . . Melee 203 | . . . . . . . . 112 . . . . . . . 91 Ramming 2 | . . . . 2 . . . . . . . . . . . . Kinetic 1551 | . . . 24 18 . 545 . 150 . 317 . . 252 . 104 141 Thermal 461 | . 196 145 89 31 . . . . . . . . . . . . Explosive . | . . . . . . . . . . . . . . . . . Electromagnetic . | . . . . . . . . . . . . . . . . . Impact . | . . . . . . . . . . . . . . . . . Slashing 203 | . . . . . . . . 112 . . . . . . . 91 Piercing . | . . . . . . . . . . . . . . . . . Highest Corruption 4 | . . . . . 1 4 1 . . . . 1 1 . . 3 Average Corruption 1 | . . . . . 1 1 1 . . . . 1 1 . . 1 Corruption Purged 4 | . . . . . . 3 1 . . . . . . . . . Corruption Blocked . | . . . . . . . . . . . . . . . . . Effects 23 | . . . . . . 6 3 . . . . 1 2 . . 11 Message Errors 4 | . . . . . . . 2 . . . . . 1 . . 1 Matter Fused 5 | . . . . . . 1 . . . . . 1 . . . 3 Heat Flow Errors 4 | . . . . . . 1 1 . . . . . 1 . . 1 Energy Discharges 2 | . . . . . . 1 . . . . . . . . . 1 Data Loss (minor) 3 | . . . . . . 1 . . . . . . . . . 2 Data Loss (major) 4 | . . . . . . 2 . . . . . . . . . 2 Misfires 1 | . . . . . . . . . . . . . . . . 1 Overload Shots . | . . . . . . . . . . . . . . . . . Overflow Damage 21 | . . . . . . 2 . . . . . . 4 . . 15 Projectiles 21 | . . . . . . 2 . . . . . . 4 . . 15 Explosions . | . . . . . . . . . . . . . . . . . Melee . | . . . . . . . . . . . . . . . . . Knockbacks 14 | . . . . . . 11 . . . . . . . . 1 2 Impact . | . . . . . . . . . . . . . . . . . Kinetic 11 | . . . . . . 8 . . . . . . . . 1 2 Secondary 3 | . . . . . . 3 . . . . . . . . . . Self-Inflicted Damage . | . . . . . . . . . . . . . . . . . Shots . | . . . . . . . . . . . . . . . . . Rammed . | . . . . . . . . . . . . . . . . . Targets Rammed 2 | . . . . 2 . . . . . . . . . . . . Kicked 2 | . . . . 2 . . . . . . . . . . . . Crushed . | . . . . . . . . . . . . . . . . . Highest Temperature 369 | . 253 369 . 60 . 207 130 . . 4 . . 242 12 . 268 Average Temperature 90 | . 145 93 . 23 . 93 70 . . 4 . . 60 7 . 56 Received Heat Transfer 735 | . 129 132 . 24 . 195 . 63 . 84 . . 45 . . 63 Effects 7 | . 4 3 . . . . . . . . . . . . . . Energy Bleed 2 | . 1 1 . . . . . . . . . . . . . . Interference 5 | . 3 2 . . . . . . . . . . . . . . Siege Activations . | . . . . . . . . . . . . . . . . . Martial Activations . | . . . . . . . . . . . . . . . . . Shielding Activations . | . . . . . . . . . . . . . . . . . Robots Disrupted . | . . . . . . . . . . . . . . . . . Combat Hostiles . | . . . . . . . . . . . . . . . . . Robots Corrupted . | . . . . . . . . . . . . . . . . . Combat Hostiles . | . . . . . . . . . . . . . . . . . Parts Fried 1 | . . . . . . . . . . . . . . . . 1 Impact Corruptions . | . . . . . . . . . . . . . . . . . Robots Melted 1 | . . 1 . . . . . . . . . . . . . . Combat Hostiles 1 | . . 1 . . . . . . . . . . . . . . Parts Melted 3 | . 1 2 . . . . . . . . . . . . . . Heat Transferred 1390 | . 450 520 309 111 . . . . . . . . . . . . Parts Sabotaged . | . . . . . . . . . . . . . . . . . Parts Stolen . | . . . . . . . . . . . . . . . . . Parts Stripped . | . . . . . . . . . . . . . . . . . Power Chain Reactions . | . . . . . . . . . . . . . . . . . Alert | -11 -10 -10 -10 -9 -6 -5 -5 -5 -5 -4 -4 -4 -3 -2 -2 -1 ------- Run | Yrd Mat Min Sub Scr Fac Fac Upp Upp Zhi Pro Fac DSF Res Res DSF Acc Maximum Alert Level 2 | . . . . . . . . . . . 2 1 . . . . Low Security (%) 98 | 100 100 100 . . 100 100 . . . . . . 100 100 100 100 Level 1 1 | . . . . . . . . . . . . 100 . . . . Level 2 . | . . . . . . . . . . . 100 . . . . . Level 3 . | . . . . . . . . . . . . . . . . . Level 4 . | . . . . . . . . . . . . . . . . . Level 5 . | . . . . . . . . . . . . . . . . . High Security . | . . . . . . . . . . . . . . . . . Max Security . | . . . . . . . . . . . . . . . . . Peak Influence 478 | . 30 30 . . 17 112 . . . . 478 327 183 32 48 78 Initial 478 | . . . . . . . . . . . 478 327 180 21 . 28 Average 23 | . 3 1 . . 1 8 . . . . 474 317 105 11 24 7 Influence Increases 2486 | . 56 30 40 . 27 289 141 773 . 137 450 15 120 66 68 274 Destroy 0b10 Robot/C 820 | . 40 20 40 . . 80 40 460 . 60 . . 20 . 40 20 Destroy 0b10 Robot/NC 5 | . . . . . . . . . . . . . . . . 5 Destroy Leader 90 | . 10 10 . . . 30 . 30 . . . . . . 10 . Allied During Kill 251 | . . . . . . . 11 238 . 2 . . . . . . Successful Hack 180 | . 6 . . . 12 70 . . . . . . 8 33 . 51 Disable Machine 45 | . . . . . . . . . . . . . 15 30 . . Destroy Structure 60 | . . . . . . 4 . . . . . . 2 3 3 48 Advance Influence 450 | . . . . . . . . . . . 450 . . . . . Partial Spotted 75 | . . . . . . 15 . . . . . . 30 . . 30 Lose Combat Pursuer 510 | . . . . . 15 90 90 45 . 75 . 15 45 . 15 120 Influence Decreases 2486 | . 56 30 10 30 27 222 196 172 613 92 27 161 404 104 20 322 Entered New Map 1009 | . . . . 30 . . 26 3 613 . 17 141 142 17 . 20 Time Decay 1133 | . 46 30 10 . 27 139 159 129 . 60 10 . 222 87 . 214 Lost Part 281 | . 10 . . . . 83 . . . 20 . 20 40 . 20 88 Lost Ally 63 | . . . . . . . 11 40 . 12 . . . . . . Squads Dispatched 17 | . . . . . 2 4 . 1 . . . . 2 . 1 7 Investigation 4 | . . . . . 1 2 . . . . . . . . . 1 Extermination 8 | . . . . . 1 2 . . . . . . 2 . . 3 Reinforcement 4 | . . . . . . . . . . . . . . . 1 3 Assault 1 | . . . . . . . . 1 . . . . . . . . Garrison . | . . . . . . . . . . . . . . . . . Intercept . | . . . . . . . . . . . . . . . . . Searches Triggered . | . . . . . . . . . . . . . . . . . Construction Impeded . | . . . . . . . . . . . . . . . . . Haulers Reinforced . | . . . . . . . . . . . . . . . . . Active Scanning Responses . | . . . . . . . . . . . . . . . . . Cargo Convoy Interrupts . | . . . . . . . . . . . . . . . . . Stealth | -11 -10 -10 -10 -9 -6 -5 -5 -5 -5 -4 -4 -4 -3 -2 -2 -1 --------- Run | Yrd Mat Min Sub Scr Fac Fac Upp Upp Zhi Pro Fac DSF Res Res DSF Acc Distress Signals 6 | . . . . . 2 . . . . 1 . . . . . 3 Communications Jammed . | . . . . . . . . . . . . . . . . . Distress Signals . | . . . . . . . . . . . . . . . . . Times Spotted 166 | . 5 2 15 11 4 18 9 22 . 15 . 3 17 . 3 42 Peak Tracking Total 20 | . 3 2 6 5 3 6 5 7 . 5 . 2 9 . 2 20 Tactical Retreats 21 | . . . . . 1 5 3 2 . 2 . 1 1 . 1 5 Traps | -11 -10 -10 -10 -9 -6 -5 -5 -5 -5 -4 -4 -4 -3 -2 -2 -1 ------- Run | Yrd Mat Min Sub Scr Fac Fac Upp Upp Zhi Pro Fac DSF Res Res DSF Acc Traps Triggered 6 | . . . . . . . . . . . . 1 . . 1 4 Indirectly . | . . . . . . . . . . . . . . . . . Trap Hack Attempts . | . . . . . . . . . . . . . . . . . Triggered . | . . . . . . . . . . . . . . . . . Disarmed . | . . . . . . . . . . . . . . . . . Reprogrammed . | . . . . . . . . . . . . . . . . . Reused . | . . . . . . . . . . . . . . . . . Traps Extracted . | . . . . . . . . . . . . . . . . . Installed . | . . . . . . . . . . . . . . . . . Triggered . | . . . . . . . . . . . . . . . . . Machines | -11 -10 -10 -10 -9 -6 -5 -5 -5 -5 -4 -4 -4 -3 -2 -2 -1 ---------- Run | Yrd Mat Min Sub Scr Fac Fac Upp Upp Zhi Pro Fac DSF Res Res DSF Acc Machines Disabled 5 | . . . . . . . . 2 . . . . 1 2 . . Max in Single Turn 1 | . . . . . . . . . . . . . 1 1 . . Machines Repaired . | . . . . . . . . . . . . . . . . . Machines Dismantled . | . . . . . . . . . . . . . . . . . Machines Sabotaged . | . . . . . . . . . . . . . . . . . Overloaded Fab Kills . | . . . . . . . . . . . . . . . . . Hacking | -11 -10 -10 -10 -9 -6 -5 -5 -5 -5 -4 -4 -4 -3 -2 -2 -1 --------- Run | Yrd Mat Min Sub Scr Fac Fac Upp Upp Zhi Pro Fac DSF Res Res DSF Acc Machines Accessed 49 | . 1 . . 10 2 11 3 . 6 . 1 . 5 2 . 8 Terminals 16 | . 1 . . . 1 6 . . . . 1 . 1 1 . 5 Fabricators 3 | . . . . . . 1 . . . . . . 1 . . 1 Repair Stations 2 | . . . . . . 1 . . . . . . . 1 . . Recycling Units 4 | . . . . . . 2 . . . . . . 1 . . 1 Scanalyzers 5 | . . . . . 1 1 . . . . . . 2 . . 1 Garrison Access . | . . . . . . . . . . . . . . . . . Total Hacks 150 | . 5 . . 42 5 29 5 . 19 . 1 . 16 3 . 25 Successful 121 | . 3 . . 42 3 19 5 . 19 . 1 . 5 3 . 21 Failed 28 | . 2 . . . 2 9 . . . . . . 11 . . 4 Catastrophic 1 | . . . . . . . . . . . . . . . . 1 Database Lockouts 1 | . . . . . . 1 . . . . . . . . . . Manual 25 | . 3 . . . . 12 . . . . . . 3 . . 7 Terminals 43 | . 5 . . . 2 16 . . . . 1 . 3 1 . 15 Fabricators 7 | . . . . . . 2 . . . . . . 3 . . 2 Repair Stations 8 | . . . . . . 6 . . . . . . . 2 . . Recycling Units 10 | . . . . . . 4 . . . . . . 3 . . 3 Scanalyzers 16 | . . . . . 3 1 . . . . . . 7 . . 5 Garrison Access . | . . . . . . . . . . . . . . . . . Terminal Hacks 84 | . 3 . . 42 . 5 5 . 19 . 1 . . 1 . 8 Record 51 | . . . . 35 . 2 3 . 7 . . . . . . 4 Part Schematic 4 | . . . . . . . . . 4 . . . . . . . Robot Analysis 12 | . 2 . . 6 . . . . 4 . . . . . . . Prototype ID Bank 4 | . . . . . . . . . 4 . . . . . . . Open Door 2 | . . . . . . . 2 . . . . . . . . . Open DSF 2 | . . . . . . . . . . . 1 . . 1 . . Level Access Points 1 | . . . . . . 1 . . . . . . . . . . Branch Access Points 3 | . 1 . . . . 1 . . . . . . . . . 1 Machine Index 1 | . . . . . . . . . . . . . . . . 1 Terminal Index 1 | . . . . . . . . . . . . . . . . 1 Scanalyzer Index 1 | . . . . . . 1 . . . . . . . . . . Garrison Index 1 | . . . . . . . . . . . . . . . . 1 Proto ID Catalog 1 | . . . . 1 . . . . . . . . . . . . Fabricator Hacks 5 | . . . . . . 2 . . . . . . 1 . . 2 Network Status 1 | . . . . . . . . . . . . . 1 . . . Load Schematic 2 | . . . . . . 1 . . . . . . . . . 1 Build 2 | . . . . . . 1 . . . . . . . . . 1 Repair Station Hacks 7 | . . . . . . 5 . . . . . . . 2 . . Scan Component 3 | . . . . . . 2 . . . . . . . 1 . . Repair 3 | . . . . . . 2 . . . . . . . 1 . . Refit 1 | . . . . . . 1 . . . . . . . . . . Recycling Unit Hacks 3 | . . . . . . . . . . . . . . . . 3 Process 1 | . . . . . . . . . . . . . . . . 1 Retrieve Matter 2 | . . . . . . . . . . . . . . . . 2 Scanalyzer 12 | . . . . . 3 . . . . . . . 4 . . 5 Insert Component 2 | . . . . . 1 . . . . . . . 1 . . . Analyze 2 | . . . . . 1 . . . . . . . 1 . . . Retrieve Study 8 | . . . . . 1 . . . . . . . 2 . . 5 Garrison Access Hacks . | . . . . . . . . . . . . . . . . . Unauthorized Hacks 7 | . . . . . . 4 . . . . . . . . . 3 Terminals 7 | . . . . . . 4 . . . . . . . . . 3 Botnet 7 | . . . . . . 4 . . . . . . . . . 3 Fabricators . | . . . . . . . . . . . . . . . . . Repair Stations . | . . . . . . . . . . . . . . . . . Recycling Units . | . . . . . . . . . . . . . . . . . Scanalyzers . | . . . . . . . . . . . . . . . . . Garrison Access . | . . . . . . . . . . . . . . . . . Data Cores Recovered . | . . . . . . . . . . . . . . . . . Used . | . . . . . . . . . . . . . . . . . Hacking Detections 29 | . 1 . . . 2 11 . . . . . . 5 2 . 8 Full Trace Events 4 | . . . . . 1 2 . . . . . . . . . 1 Feedback Events . | . . . . . . . . . . . . . . . . . Feedback Blocked . | . . . . . . . . . . . . . . . . . Robot Schematics Acquired . | . . . . . . . . . . . . . . . . . Robots Built . | . . . . . . . . . . . . . . . . . Authchips . | . . . . . . . . . . . . . . . . . Time . | . . . . . . . . . . . . . . . . . Total Robot Build Rating . | . . . . . . . . . . . . . . . . . Part Schematics Acquired 6 | . . . . . 1 . . . 4 . . . 1 . . . Parts Built 2 | . . . . . . 1 . . . . . . . . . 1 Authchips . | . . . . . . . . . . . . . . . . . Time 138 | . . . . . . 76 . . . . . . . . . 62 Total Part Build Rating 12 | . . . . . . 5 . . . . . . . . . 7 Part Studies Acquired 8 | . . . . . 1 . . . . . . . 2 . . 5 Parts Repaired 3 | . . . . . . 2 . . . . . . . 1 . . Time 128 | . . . . . . 106 . . . . . . . 22 . . Parts Recycled . | . . . . . . . . . . . . . . . . . Recycled Matter 15 | . . . . . . . . . . . . . . . . 15 Retrieved Matter 15 | . . . . . . . . . . . . . . . . 15 Retrieved Components . | . . . . . . . . . . . . . . . . . Parts Scanalyzed 2 | . . . . . 1 . . . . . . . 1 . . . Part Schematics Acquired 2 | . . . . . 1 . . . . . . . 1 . . . Parts Damaged . | . . . . . . . . . . . . . . . . . Bothacking | -11 -10 -10 -10 -9 -6 -5 -5 -5 -5 -4 -4 -4 -3 -2 -2 -1 ------------ Run | Yrd Mat Min Sub Scr Fac Fac Upp Upp Zhi Pro Fac DSF Res Res DSF Acc Used RIF Installer . | . . . . . . . . . . . . . . . . . Robots Hacked . | . . . . . . . . . . . . . . . . . Non-combat . | . . . . . . . . . . . . . . . . . Combat . | . . . . . . . . . . . . . . . . . Robot Hacks Applied . | . . . . . . . . . . . . . . . . . Relay Couplers Released . | . . . . . . . . . . . . . . . . . Fabnet Peak Effective % . | . . . . . . . . . . . . . . . . . Robots Rewired 1 | . . . . . . . . 1 . . . . . . . . Allies Hacked . | . . . . . . . . . . . . . . . . . Hacks Repelled . | . . . . . . . . . . . . . . . . . Allies | -11 -10 -10 -10 -9 -6 -5 -5 -5 -5 -4 -4 -4 -3 -2 -2 -1 -------- Run | Yrd Mat Min Sub Scr Fac Fac Upp Upp Zhi Pro Fac DSF Res Res DSF Acc Total Allies 8 | . . . . . . . 7 1 . . . . . . . . Largest Group 6 | . . . . . . . 6 6 3 3 . . . . . . Highest-Rated Group 269 | . . . . . . . 269 264 119 119 . . . . . . Highest-Rated Ally 50 | . . . . . . . 50 50 47 47 . . . . . . Total Orders . | . . . . . . . . . . . . . . . . . Ally Attacks 177 | . . . . . . . 20 150 . 7 . . . . . . Total Damage 3301 | . . . . . . . 284 2863 . 154 . . . . . . Kills 24 | . . . . . . . 2 22 . . . . . . . . Allies Corrupted . | . . . . . . . . . . . . . . . . . Allies Melted . | . . . . . . . . . . . . . . . . . Intel | -11 -10 -10 -10 -9 -6 -5 -5 -5 -5 -4 -4 -4 -3 -2 -2 -1 ------- Run | Yrd Mat Min Sub Scr Fac Fac Upp Upp Zhi Pro Fac DSF Res Res DSF Acc Active Infowar (turns) 7771 | . . . 1 3637 400 847 519 309 94 178 28 62 472 262 70 892 Optics 4121 | . . . . . 398 847 519 309 94 178 28 62 472 262 70 882 Sensors 2168 | . . . 1 . 386 302 . . . . 6 62 335 219 70 787 IFF 394 | . . . . . . 394 . . . . . . . . . . Terrain 3637 | . . . . 3637 . . . . . . . . . . . . Decoding 4133 | . . . . . 400 847 519 309 94 178 28 62 472 262 70 892 Triangulation 2073 | . . . . . . 29 519 309 34 148 28 62 472 262 70 140 Jamming 471 | . . . . . . . . . . . 17 15 . 211 70 158 Robot Analysis Total 12 | . 2 . . 6 . . . . 4 . . . . . . . Derelict Logs Recovered 6 | . . 1 1 1 . . 2 . . 1 . . . . . . Drone Launches . | . . . . . . . . . . . . . . . . . Drone Recoveries . | . . . . . . . . . . . . . . . . . Decoded 0b10 Intel 55 | . . . . . 8 17 . . . . 1 2 10 3 1 13 Traps 35 | . . . . . 5 14 . . . . . 2 5 1 1 7 Emergency Access 19 | . . . . . 3 3 . . . . 1 . 5 2 . 5 Garrisons 1 | . . . . . . . . . . . . . . . . 1 Exploration | -11 -10 -10 -10 -9 -6 -5 -5 -5 -5 -4 -4 -4 -3 -2 -2 -1 ------------- Run | Yrd Mat Min Sub Scr Fac Fac Upp Upp Zhi Pro Fac DSF Res Res DSF Acc Turns Passed 11366 | 61 383 1090 364 5335 400 847 519 309 94 178 28 62 472 262 70 892 Spaces Moved 9060 | 58 248 461 196 2154 275 1025 758 677 161 398 54 110 940 214 84 1247 Core 20 | 17 . . . . . . . . . . . . . . . 3 Treads 709 | . 125 461 123 . . . . . . . . . . . . . Legs 2263 | . . . 73 2154 36 . . . . . . . . . . . Wheels 166 | 41 123 . . . . 2 . . . . . . . . . . Hover 1686 | . . . . . . . . . . . . 6 143 214 84 1239 Flight 4216 | . . . . . 239 1023 758 677 161 398 54 104 797 . . 5 Fastest Speed 26 | 50 90 160 120 120 31 28 27 27 26 26 42 28 28 55 55 40 Average Speed 70 | 78 129 160 145 120 75 30 29 27 26 33 42 41 38 55 56 55 Slowest Speed 190 | 90 160 160 160 190 190 115 31 27 27 42 42 66 98 55 58 110 Overloaded Moves 780 | . . . . . . . . . . 20 . 44 716 . . . Propulsion Burnouts 1 | . . . . . . . . . . . . . 1 . . . Robots Hopped 31 | . . . . . 1 16 2 5 . 3 . 1 2 . . 1 Potential Cave-ins . | . . . . . . . . . . . . . . . . . Cave-ins Triggered . | . . . . . . . . . . . . . . . . . Teleports 1 | . . . . . . . . . . . . . 1 . . . Exploration Rate (%) 45 | 3 41 85 16 90 8 22 78 70 63 72 3 90 17 4 80 28 Regions Visited 16 Branch Regions 7 Pre-discovered Areas 5 | . . . . 1 . . 1 . 3 . . . . . . . Known Exits Taken 10 | . 1 . . . 1 1 1 1 1 1 1 . 1 1 . . Unknown Exits Taken 4 | 1 . 1 1 1 . . . . . . . . . . . . Scrap Searched 14 | . . . . 5 . . 4 4 . 1 . . . . . . Spaces Dug 34 | . . 19 . . . . . . . . . . . . . 15 Terrain Destroyed 49 | . . 22 . . . 2 . . . 6 . . 1 . 1 17 Melee . | . . . . . . . . . . . . . . . . . Projectile 49 | . . 22 . . . 2 . . . 6 . . 1 . 1 17 AOE . | . . . . . . . . . . . . . . . . . Terrain Rammed . | . . . . . . . . . . . . . . . . . Walls Destroyed . | . . . . . . . . . . . . . . . . . Machines Disabled . | . . . . . . . . . . . . . . . . . Actions | -11 -10 -10 -10 -9 -6 -5 -5 -5 -5 -4 -4 -4 -3 -2 -2 -1 --------- Run | Yrd Mat Min Sub Scr Fac Fac Upp Upp Zhi Pro Fac DSF Res Res DSF Acc Total 13686 | 73 286 627 242 4897 467 1527 1053 783 213 422 59 127 1041 356 100 1413 Wait 4098 | . 5 91 5 2695 164 452 268 83 27 1 . . 68 128 1 110 Move 8988 | 57 247 460 195 2154 272 995 753 667 160 391 53 107 935 214 83 1245 Hop 27 | . . . . . 1 13 2 4 . 3 . 1 2 . . 1 Pick Up 164 | 10 13 4 9 24 7 17 15 3 9 3 2 10 11 8 5 14 Fast Attach . | . . . . . . . . . . . . . . . . . Attach 94 | 6 3 . 1 3 12 16 7 3 1 5 3 4 10 4 4 12 Detach 13 | . . . . . 5 3 . 2 1 . 1 . 1 . . . Swap 29 | . 3 4 7 2 2 2 . 3 6 . . . . . . . Drop 78 | . . 3 10 14 3 12 7 1 9 2 . 5 5 . 1 6 Fire 177 | . 15 65 14 4 1 17 . 7 . 17 . . 9 2 6 20 Melee 12 | . . . . . . . . 7 . . . . . . . 5 Ram . | . . . . . . . . . . . . . . . . . Kick 1 | . . . . 1 . . . . . . . . . . . . Crush . | . . . . . . . . . . . . . . . . . Escape Stasis . | . . . . . . . . . . . . . . . . . Rewire 3 | . . . . . . . . 3 . . . . . . . . Trap . | . . . . . . . . . . . . . . . . . Miscellaneous 2 | . . . 1 . . . 1 . . . . . . . . . Route ------- -11/Scrapyard -10/Materials (discovered 3 exits: [*Mat] / *Min / [*Sub]) -10/Mines (discovered 2 exits: [*Mat] / [*Sub]) -10/Subcaves (discovered 3 exits: [*Mat] / [*Rec] / *Scr) -9/Scraptown (discovered 2 exits: *Fac x2) -6/Factory -5/Factory (discovered 8 exits: *Fac x4 / *Upp x2 / Ext x2) -5/Upper Caves -5/Upper Caves -5/Zhirov -4/Proximity Caves -4/Factory -4/DSF -3/Research -2/Research -2/DSF -1/Access (discovered 1 exit: Com) History --------- Turn | Location | Event 38 | -11/Scrapyard | Discovered new exit (range 15) 62 | -11/Scrapyard | Entered Materials 280 | -10/Materials | Discovered new exit (range 16) 300 | -10/Materials | Build established: Mutant 323 | -10/Materials | Identified exit to Mines 400 | -10/Materials | Discovered new exit (range 11) 445 | -10/Materials | Entered Mines 467 | -10/Mines | Met a Derelict bent on vengeance 1145 | -10/Mines | Found a damaged Exp. Sensor Array with a note attached 1148 | -10/Mines | Found Prototype Device 1179 | -10/Mines | Assembled infested the area 1184 | -10/Mines | Assisted by a Guerilla fighting off Assembled 1266 | -10/Mines | Learned Materials stockpile data 1271 | -10/Mines | Discovered new exit (range 13) 1532 | -10/Mines | Discovered new exit (range 3) 1535 | -10/Mines | Entered Subcaves 1536 | -10/Subcaves | Approached by a straggling Scientist 1541 | -10/Subcaves | Identified Exp. Sensor Array 1635 | -10/Subcaves | Discovered new exit (range 9) 1766 | -10/Subcaves | Ambushed by swarm of Subdwellers 1883 | -10/Subcaves | Learned Materials stockpile data 1888 | -10/Subcaves | Scientist uncovered a shortcut to Scraptown 1899 | -10/Subcaves | Discovered new exit (range 16) 1899 | -10/Subcaves | Entered Scraptown 2143 | -9/Scraptown | Scanned Subdweller tech in exchange for log data 2149 | -9/Scraptown | Learned Research security intel 2169 | -9/Scraptown | Heard Great Nut preacher, LISTEN AND RECITE! 2213 | -9/Scraptown | Visited TADAMA 2465 | -9/Scraptown | Visited Cyclists 2504 | -9/Scraptown | Visited Junk Repository 2547 | -9/Scraptown | Visited Shadow of the Wyrm 2680 | -9/Scraptown | Discovered new exit (range 13) 2827 | -9/Scraptown | Visited Junk Repository 2867 | -9/Scraptown | Visited Assassins FH 3009 | -9/Scraptown | Visited UFD Registry 3009 | -9/Scraptown | Registered with UFD as "Carbonslider" 3041 | -9/Scraptown | Entered Cyclist Reading Room 3101 | -9/Scraptown | Visited Derelict Rescue Squad 3109 | -9/Scraptown | Found DRS Beacon 3157 | -9/Scraptown | Visited Curators Association 3176 | -9/Scraptown | Visited Science Guys 3258 | -9/Scraptown | Delivered Scrap Shield to a Scientist 3451 | -9/Scraptown | Visited Scrapoid Pod Storage 3457 | -9/Scraptown | Found Scrapoid Pod 3479 | -9/Scraptown | Visited Infowarlord's Domain 3579 | -9/Scraptown | Visited Cartography Club 3607 | -9/Scraptown | Found Surveybot 17 Chip 3850 | -9/Scraptown | Discovered new exit (range 5) 4162 | -9/Scraptown | Visited Abandonware Association 4175 | -9/Scraptown | Learned abandonware demo "REPAIR.EXE" 4175 | -9/Scraptown | Learned abandonware demo "POISON.EXE" 4205 | -9/Scraptown | Visited Analyses Database 4246 | -9/Scraptown | Visited Scrap Suit Storage 4259 | -9/Scraptown | Found Scrap Suit 7030 | -9/Scraptown | Met Optimus 7030 | -9/Scraptown | Accepted into 0bPrime 7116 | -9/Scraptown | Civil war broke out across Scraptown 7175 | -9/Scraptown | Lost 3 allies 7177 | -9/Scraptown | Optimus destroyed in the chaos of civil war 7233 | -9/Scraptown | Core integrity fell below 50% 7234 | -9/Scraptown | Entered Factory 7234 | -6/Factory | Evolved 8 slots: Propulsion x2, Utility x6 7627 | -6/Factory | Discovered new exit (range 15) 7634 | -6/Factory | Identified exit to Factory 7634 | -6/Factory | Entered another Factory area 7634 | -5/Factory | Evolved 2 slots: Propulsion x1, Utility x1 7816 | -5/Factory | Repaired Ion Engine+ 8067 | -5/Factory | Identified exit to Upper Caves 8067 | -5/Factory | Identified exit to Extension 8130 | -5/Factory | Identified exit to Factory 8182 | -5/Factory | Central database locked down 8200 | -5/Factory | Fabricated Biomechanical Wings? 8444 | -5/Factory | Repaired Biomechanical Wings 8446 | -5/Factory | Core integrity fell below 50% 8481 | -5/Factory | Entered Upper Caves 8482 | -5/Upper Caves | Activated DRS Beacon 8483 | -5/Upper Caves | UFD Scientist delivered a prototype 8483 | -5/Upper Caves | Found Prototype Protection 8484 | -5/Upper Caves | Identified Enh. Scrap Shield 8500 | -5/Upper Caves | Learned Factory trap positions 8509 | -5/Upper Caves | Lost 8 parts (2p1n4u1w) 8583 | -5/Upper Caves | Entered an active Warlord outpost 8583 | -5/Upper Caves | A Commander dispatched an escort 8596 | -5/Upper Caves | Learned Extension trap positions 8596 | -5/Upper Caves | Learned Armory trap positions 8873 | -5/Upper Caves | Learned location of Warlord (-4) 8887 | -5/Upper Caves | Scrapoid Pod released 05U05-D (x5) 8950 | -5/Upper Caves | Discovered new exit (range 16) 8956 | -5/Upper Caves | Identified exit to Upper Caves 9000 | -5/Upper Caves | Entered another Upper Caves area 9000 | -5/Upper Caves | Accompanied by 6 allies 9001 | -5/Upper Caves | Commander's escort returned to base 9109 | -5/Upper Caves | Attracted the attention of an 0b10 outpost 9241 | -5/Upper Caves | Spotted B-75 Beast 9253 | -5/Upper Caves | Discovered new exit (range 16) 9278 | -5/Upper Caves | Attracted the attention of an 0b10 checkpoint 9303 | -5/Upper Caves | Identified exit to Zhirov 9309 | -5/Upper Caves | Entered Zhirov 9309 | -5/Zhirov | Accompanied by 3 allies 9309 | -5/Zhirov | Discovered new exit (range 3) 9310 | -5/Zhirov | Identified exit to Proximity Caves 9314 | -5/Zhirov | Met Zhirov 9322 | -5/Zhirov | Found Alien Artifact 9354 | -5/Zhirov | Found Alien Artifact 9355 | -5/Zhirov | Identified Integrated Reactor 9355 | -5/Zhirov | Installed Integrated Reactor, increased core energy generation (+10) 9366 | -5/Zhirov | Learned location of Quarantine (-3) 9366 | -5/Zhirov | Learned location of Testing (-2) 9366 | -5/Zhirov | Learned location of Command (-1) 9368 | -5/Zhirov | Zhirov requested help retrieving the SGEMP Prototype 9403 | -5/Zhirov | Entered Proximity Caves 9403 | -4/Proximity Caves | Accompanied by 3 allies 9405 | -4/Proximity Caves | Attracted the attention of an 0b10 checkpoint 9414 | -4/Proximity Caves | Build established: Hacker-Sprinter 9442 | -4/Proximity Caves | Learned Research garrison access intel 9453 | -4/Proximity Caves | Lost 3 allies 9458 | -4/Proximity Caves | Spotted B-86 Titan 9480 | -4/Proximity Caves | Spotter reported a threat 9484 | -4/Proximity Caves | Spotter reported a threat 9533 | -4/Proximity Caves | Spotter reported a threat 9574 | -4/Proximity Caves | Discovered exit to Factory (range 19) 9578 | -4/Proximity Caves | Core integrity fell below 20% 9581 | -4/Proximity Caves | Entered Factory 9581 | -4/Factory | Evolved 2 slots: Utility x2 9582 | -4/Factory | Loaded intel: 106 trap records 9609 | -4/Factory | Identified exit to DSF 9609 | -4/Factory | Entered DSF 9630 | -4/DSF | Additional patrols routed to DSF 9654 | -4/DSF | Discovered new exit (range 20) 9671 | -4/DSF | Identified exit to Research 9671 | -4/DSF | Entered Research 9671 | -3/Research | Evolved 2 slots: Utility x2 9673 | -3/Research | Loaded intel: 4 garrison access locations 10056 | -3/Research | Identified Transdimensional Reconstructor 10056 | -3/Research | Warped through subspace 10134 | -3/Research | Found Fusion Bomb Launcher 10138 | -3/Research | Discovered new exit (range 9) 10143 | -3/Research | Identified exit to Research 10143 | -3/Research | Entered another Research area 10143 | -2/Research | Evolved 2 slots: Utility x2 10244 | -2/Research | Repaired Lgt. Particle Reactor+ 10405 | -2/Research | Identified exit to DSF 10405 | -2/Research | Entered DSF 10442 | -2/DSF | Additional patrols routed to DSF 10460 | -2/DSF | Discovered new exit (range 20) 10471 | -2/DSF | Lost 3 parts (1n1u1w) 10474 | -2/DSF | Identified exit to Access 10475 | -2/DSF | Entered Access 10475 | -1/Access | Evolved 2 slots: Utility x2 10664 | -1/Access | Lost 7 parts (1p5u1w) 10809 | -1/Access | Spotted B-99 Colossus 10930 | -1/Access | Fabricated Assault Drone Bay? 10939 | -1/Access | Identified exit to Command 11027 | -1/Access | Build established: Wizard-Scout 11282 | -1/Access | Spotted B-99 Colossus 11313 | -1/Access | Lost 4 parts (1n3u) 11359 | -1/Access | Core integrity fell below 50% 11365 | -1/Access | Core integrity fell below 20% 11367 | -1/Access | Destroyed by H-88 Terminator with Heavy Machine Gun Last Messages --------------- 11362_ Acquired 98 matter. 11362_ Imp. Hacking Suite severed. 11363_ Slug penetrates Wall. 11363_ Slug penetrates R-10 Processor. 11364_ Penetrated by Slug. 11364_ Slug penetrates Door. 11364_ Slug penetrates C-57 Dissector. 11364_ C-57 Dissector destroyed. 11364_ Penetrated by Slug. 11365_ P-80 Master resets A-15 Conveyor, system corruption cleaned. 11366_ Q-thruster+ destroyed. 11366_ Knocked back. 11366_ U-05 Engineer lays Concrete. 11367_ P-80 Master resets R-10 Processor, system corruption cleaned. 11367_ P-80 Master resets A-15 Conveyor, system corruption cleaned. 11367_ Imp. Hacking Suite severed. 11367_ Penetrated by Slug. Map ----- +----------------------------------------------------+ | ?????????????????????????????????????????????????? | | ?????????????????????????????????????????????????? | | ?????????????????????????????????????????????????? | | ?????????????????????????????????????????????????? | | ?????????????????????????????????????????????????? | | ?????????????????????????????????????????????????? | | ?????????????????????????????????????????????????? | | ???>????????????????????? ????????????????????? | | ????????????????????????? ??????????????????? | | ????????????????????????# #????????????????? | | ????????????????????????# #????????????????? | | ????????????????????###?# #????????????????? | | ???????????????????? ?# +????????????????? | | ??????????????????? # k#????????????????? | | ???????????????????""" # #????????????????? | | ???????????????????""" # #????????????????? | | ??????????????????"""" # #????????????????? | | ????????????????"""""" #????????????????? | | ?????????????# """""" ####?????????????? | | ?????????????# ??????????????? | | ????????????????? #????????????????? | | ????????????????????? #????????????????? | | ????????????????????????# #????????????????? | | ????????????????????????# #????????????????? | | ????????????????????????# #????????????????? | | ????????????????????????#@ = #????????????????? | | ?????H??????????????????# c *h=#????????????????? | | ????????????????????????# ch !h #????????????????? | | ????????????????????????# ! #????????????????? | | ????????????????????????# ==#????????????????? | | ????????????????????????# =!#????????????????? | | ????????????????????????# #????????????????? | | ???????????????????????## A =#????????????????? | | ????????????############ !%##############???? | | ????????????# """T""" R /# ] #???? | | ????????????# """ """ w# #???? | | ????????????# #! #???? | | ????????????# p # #???? | | ????????????# # # #???? | | ????????????# """"" #p # " #???? | | ????????????# """"" + * / """ #???? | | ????????????# """"" # === # """ #???? | | ????????????# """"" # # " +???? | | ????????????# """"" ! # # ^#???? | | ???????????## """"" # # #???? | | ???????????#" # # #???? | | ???????????## ! # ##+############### | | ????????????############# ## ##" | | ????????????????????????# ## + | | ????????????????????????# ###### | +----------------------------------------------------+ Best States ------------- Heat Dissipation 52 Energy Generation 37 Energy Capacity 850 Matter Stores 300 Matter Capacity 300 Sight Range 22 Robot Scan Range 20 Terrain Scan Range 14 Terrain Scan Density 10 Jamming Range 16 Additional Mass Support 20 Armor Coverage 800 Power Shielding 90 Evasion (%) 66 Recoil Reduction 2 Offensive Hacking 48 Defensive Hacking 28 Authchip Count 1 Item Schematics ----------------- Biomechanical Wings | -6/Factory | Scanalyzed Assault Drone Bay | -5/Zhirov | Free Exp. Heat Sink | -5/Zhirov | Free Exp. Optical Array | -5/Zhirov | Free Imp. Arc Thrower | -5/Zhirov | Free Gyrokinetic Inverter | -3/Research | Scanalyzed Robot Schematics ------------------ None Fabricated ------------ Biomechanical Wings | x1 | -5/Factory Assault Drone Bay | x1 | -1/Access Repaired ---------- Ion Engine | 95% | -5/Factory Biomechanical Wings | 15% | -5/Factory Lgt. Particle Reactor | 17% | -2/Research Studied --------- Ion Engine | -6/Factory | Hacked Gyrokinetic Inverter | -3/Research | Hacked Lgt. Particle Reactor | -3/Research | Hacked Antigrav Array | -1/Access | Hacked Q-thruster | -1/Access | Hacked Adv. Surge Thruster | -1/Access | Hacked Impulse Thruster | -1/Access | Hacked Quantum Reactor | -1/Access | Hacked Alien Tech Used ----------------- Integrated Reactor Transdimensional Reconstructor Achievements -------------- Bob, First Of His Name Decoder Ring Infodabbler Loot Taster No Signal Quantum Hacking Survival Of The Most Covered True Hacker Uncivil War Use The Force Challenges ------------ None Game ------ Seed MediumBlanketFemtoactuators Manual? 0 Play Time 03:23:35 Cumulative 39.1 hours Start 2025.11.26 @ 20:13:20 End 2025.11.27 @ 21:31:37 Sessions 5 Manual Loads 0 Difficulty Rogue Special Mode None Game No. 19 Rogue 19 Adventurer 0 Explorer 0 Win Type - Total 1 Types 1/0/0/0/0/0/0/0/0/0 Lore% 30 Gallery% 33 Achievement% 31 Wizard Run 0 Options --------- Layout 1 ASCII 0 Keyboard 0 Movement Numpad Keybinds 0 Fullscreen 1 Font 24/Smallcaps Map View 50x35 Zoom Use 0% Tactical HUD 1 Map Filters NONE Filters NONE Steam 1 RUN: eec2f0fa-db8e-44b0-b2e2-6f03f0172927